bitfinex/quotes_SOLUSD_20240713
["timestamp","ask_amount","ask_price","bid_price","bid_amount"]
[1720913375925,1.35862117,142.65,142.55,7.40578243]
[1720913376222,1.35862117,142.64,142.56,23.18]
[1720913376407,1.35862117,142.64,142.57,1.40231857]
[1720913376715,1.35862117,142.67,142.58,1.40231857]
[1720913377606,1.35862117,142.67,142.56,23.18]
[1720913382227,46.35862117,142.67,142.57,1.40239113]
[1720913382714,46.35862117,142.67,142.56,23.18]
[1720913383302,46.35862117,142.67,142.54,23.18]
[1720913383898,46.35862117,142.67,142.55,1.40253839]
[1720913384405,46.35862117,142.67,142.54,23.18]
[1720913385108,46.35862117,142.67,142.55,1.40243472]
[1720913385319,46.35862117,142.67,142.54,23.18]
[1720913386190,23.18,142.66,142.52,23.18]
[1720913386412,46.35862117,142.65,142.52,23.18]
[1720913386619,1.35862117,142.64,142.52,23.18]
[1720913388914,1.35862117,142.64,142.54,23.18]
[1720913389310,1.35862117,142.67,142.56,23.18]
[1720913389498,46.35862117,142.67,142.56,23.18]
[1720913390017,46.35862117,142.67,142.53,23.18]
[1720913390323,46.35862117,142.67,142.54,1.40264356]
[1720913390532,1.35862117,142.67,142.57,23.18]
[1720913390720,1.35862117,142.67,142.55,23.18]
[1720913391811,46.35862117,142.67,142.55,23.18]
[1720913392202,69.53862117,142.67,142.53,23.18]
[1720913392515,1.35862117,142.67,142.55,23.18]
[1720913393322,24.53862117,142.67,142.51,6.5744]
[1720913393527,24.53862117,142.67,142.53,23.18]
[1720913393723,1.35862117,142.67,142.53,23.18]
[1720913393907,1.35862117,142.67,142.6,23.18]
[1720913394220,1.3,142.69,142.6,23.18]
[1720913394414,1.35862117,142.68,142.58,23.18]
[1720913395508,1.35862117,142.7,142.6,23.18]
[1720913396131,1.35862117,142.7,142.58,23.18]
[1720913396337,1.35862117,142.7,142.59,1.40219498]
[1720913397033,1.35862117,142.7,142.58,23.18]
[1720913399741,1.35862117,142.7,142.47,48.96889612]
[1720913399742,54.28,142.62,142.43,6.1795]
[1720913399939,23.18,142.59,142.45,23.18]
[1720913400132,1.35862117,142.58,142.45,23.18]
[1720913400329,1.35862117,142.6,142.48,23.18]
[1720913401316,1.35862117,142.6,142.43,6.1795]
[1720913401514,1.35862117,142.6,142.47,23.18]
[1720913401820,23.18,142.59,142.45,23.18]
[1720913402114,46.35862117,142.58,142.47,23.18]
[1720913402450,1.35862117,142.57,142.47,23.18]
[1720913402622,1.35862117,142.59,142.49,23.18]
[1720913402812,46.35862117,142.59,142.49,23.18]
[1720913403135,37.26559977,142.64,142.53,23.18]
[1720913403136,1.35862117,142.61,142.53,23.18]
[1720913403335,1.35862117,142.63,142.53,23.18]
[1720913403536,1.35862117,142.63,142.55,23.18]
[1720913403743,1.35862117,142.66,142.55,23.18]
[1720913404620,1.35862117,142.66,142.54,26.09]
[1720913406440,38.65544415,142.66,142.51,32.2695]
[1720913406621,55.71496014,142.65,142.51,32.2695]
[1720913406815,1.35862117,142.64,142.51,32.2695]
[1720913410049,1.35862117,142.64,142.51,6.1795]
[1720913411845,39.21703625,142.64,142.47,6.1795]
[1720913412032,43.73517341,142.64,142.47,6.1795]
[1720913412655,45.0,142.63,142.47,6.1795]
[1720913412830,1.35862117,142.62,142.47,6.1795]
[1720913413021,1.35862117,142.62,142.48,20.0]
[1720913419553,1.35862117,142.62,142.49,71.09]
[1720913419729,1.35862117,142.62,142.5,21.40265592]
[1720913419935,1.35862117,142.62,142.51,45.0]
[1720913420334,1.35862117,142.62,142.49,26.09]
[1720913420533,1.35862117,142.62,142.5,20.0]
[1720913421130,1.35862117,142.62,142.51,46.40279635]
[1720913421557,1.35862117,142.62,142.5,26.09]
[1720913422047,1.35862117,142.62,142.48,20.0]
[1720913422252,1.35862117,142.62,142.47,32.2695]
[1720913422456,7.55544415,142.62,142.47,32.2695]
[1720913422753,76.1,142.61,142.46,2.82625511]
[1720913422939,1.35862117,142.6,142.44,26.09]
[1720913423537,1.35862117,142.6,142.44,25.59]
[1720913424147,1.35862117,142.6,142.47,26.09]
[1720913424329,1.35862117,142.6,142.48,45.0]
[1720913424540,1.35862117,142.59,142.48,45.0]
[1720913424740,1.35862117,142.64,142.48,45.0]
[1720913424942,7.55544415,142.64,142.48,45.0]
[1720913425141,12.07358131,142.64,142.48,45.0]
[1720913425338,12.07358131,142.64,142.49,1.40293507]
[1720913426635,12.07358131,142.64,142.54,23.2]
[1720913427036,1.35862117,142.63,142.54,23.2]
[1720913427239,2.7660411,142.67,142.56,23.2]
[1720913427447,1.35862117,142.66,142.56,23.2]
[1720913428450,1.35862117,142.67,142.5,22.3824]
[1720913428634,10.71496014,142.66,142.53,23.2]
[1720913428958,1.35862117,142.65,142.53,23.2]
[1720913429758,46.35862117,142.65,142.53,23.2]
[1720913429946,23.2,142.64,142.51,23.2]
[1720913430147,46.35862117,142.63,142.51,23.2]
[1720913431555,1.35862117,142.63,142.51,23.2]
[1720913433465,46.35862117,142.63,142.51,23.2]
[1720913434639,44.3,142.62,142.45,21.9232]
[1720913434839,23.2,142.6,142.47,23.2]
[1720913435046,46.35862117,142.59,142.47,23.2]
[1720913437149,1.35862117,142.59,142.49,23.2]
[1720913437359,1.35862117,142.6,142.5,1.40288392]
[1720913437748,1.35862117,142.6,142.49,23.2]
[1720913440180,1.35862117,142.61,142.51,23.2]
[1720913440346,1.35862117,142.64,142.53,23.2]
[1720913442660,1.35862117,142.64,142.57,23.2]
[1720913443254,1.35862117,142.64,142.55,23.2]
[1720913444096,1.35862117,142.64,142.53,45.2045]
[1720913444256,1.35862117,142.64,142.49,22.0045]
[1720913444452,29.39682298,142.63,142.49,23.2]
[1720913444659,46.35862117,142.62,142.49,23.2]
[1720913446703,46.35862117,142.62,142.48,26.11]
[1720913446985,46.35862117,142.62,142.49,45.0]
[1720913447790,46.35862117,142.62,142.48,26.11]
[1720913450264,46.35862117,142.62,142.49,65.0]
[1720913451179,46.35862117,142.62,142.49,20.0]
[1720913452597,1.35862117,142.62,142.5,46.40285055]
[1720913452780,1.35862117,142.62,142.51,26.11]
[1720913453091,1.35862117,142.62,142.52,1.40267095]
[1720913453299,1.35862117,142.65,142.52,1.40267095]
[1720913453471,1.35862117,142.64,142.52,1.40267095]
[1720913453668,1.35862117,142.64,142.51,26.11]
[1720913453871,1.35862117,142.64,142.52,65.0]
[1720913454468,1.35862117,142.63,142.52,65.0]
[1720913454670,1.35862117,142.65,142.52,65.0]
[1720913454877,1.35862117,142.64,142.52,65.0]
[1720913455076,3.90363366,142.69,142.52,65.0]
[1720913455077,1.35862117,142.65,142.54,26.11]
[1720913455279,1.35862117,142.68,142.54,26.11]
[1720913455490,1.35862117,142.67,142.55,45.0]
[1720913456399,1.35862117,142.66,142.55,45.0]
[1720913456702,1.35862117,142.68,142.55,45.0]
[1720913456864,1.35862117,142.67,142.55,45.0]
[1720913457789,1.35862117,142.69,142.55,45.0]
[1720913460874,46.35862117,142.69,142.55,46.40220555]
[1720913461074,1.35862117,142.69,142.55,45.0]
[1720913461787,1.35862117,142.69,142.56,1.40210328]
[1720913462007,46.35862117,142.69,142.54,26.11]
[1720913462167,67.45862117,142.69,142.54,26.11]
[1720913462504,40.74330079,142.68,142.48,22.6939]
[1720913462682,93.56862117,142.67,142.49,26.11]
[1720913462863,101.90876286,142.67,142.49,26.11]
[1720913463068,80.80876286,142.67,142.49,26.11]
[1720913463590,1.35862117,142.67,142.52,26.11]
[1720913463767,1.35862117,142.66,142.52,26.11]
[1720913463972,1.35862117,142.66,142.53,45.0]
[1720913464369,1.35862117,142.68,142.53,45.0]
[1720913464674,1.35862117,142.67,142.53,45.0]
[1720913464869,11.35862117,142.67,142.49,26.11]
[1720913465102,40.79876286,142.67,142.49,26.11]
[1720913465471,30.74330079,142.66,142.49,26.11]
[1720913465689,1.35862117,142.65,142.49,26.11]
[1720913465892,1.35862117,142.64,142.49,26.11]
[1720913466298,1.35862117,142.64,142.5,65.0]
[1720913466703,1.35862117,142.64,142.52,23.2]
[1720913467771,24.55862117,142.64,142.5,68.2]
[1720913467972,45.0,142.63,142.5,68.2]
[1720913468210,1.35862117,142.62,142.5,68.2]
[1720913468511,1.35862117,142.62,142.5,23.2]
[1720913468717,24.55862117,142.62,142.5,23.2]
[1720913468883,45.0,142.61,142.48,23.2]
[1720913469200,1.35862117,142.6,142.48,23.2]
[1720913469697,1.35862117,142.6,142.5,23.2]
[1720913469904,9.64330079,142.66,142.44,46.57161303]
[1720913469905,1.35862117,142.63,142.52,23.2]
[1720913470104,1.35862117,142.63,142.53,23.2]
[1720913470788,1.35862117,142.65,142.53,23.2]
[1720913470973,1.35862117,142.64,142.53,23.2]
[1720913471196,1.35862117,142.64,142.47,22.6939]
[1720913471396,23.2,142.63,142.5,23.2]
[1720913471599,1.35862117,142.62,142.52,23.2]
[1720913471831,1.35862117,142.64,142.52,23.2]
[1720913472003,1.35862117,142.64,142.54,22.7]
[1720913472512,1.35862117,142.64,142.52,23.2]
[1720913473103,46.35862117,142.64,142.52,23.2]
[1720913473339,46.35862117,142.64,142.47,22.6939]
[1720913473340,87.90281573,142.64,142.47,22.6939]
[1720913473504,87.90281573,142.64,142.49,23.2]
[1720913473706,109.00281573,142.64,142.49,23.2]
[1720913474338,23.2,142.62,142.49,23.2]
[1720913474502,46.35862117,142.61,142.45,23.2]
[1720913474705,1.35862117,142.6,142.48,23.2]
[1720913476328,24.55862117,142.6,142.43,23.99885209]
[1720913476530,45.0,142.59,142.46,23.2]
[1720913476743,30.0,142.57,142.46,23.2]
[1720913476918,1.35862117,142.56,142.46,23.2]
[1720913477119,1.35862117,142.56,142.44,20.0]
[1720913477316,1.35862117,142.56,142.45,23.2]
[1720913477517,46.35862117,142.56,142.45,23.2]
[1720913477836,46.35862117,142.56,142.43,21.212]
[1720913478017,46.35862117,142.56,142.39,21.212]
[1720913478207,46.35862117,142.56,142.42,23.2]
[1720913478208,69.55862117,142.56,142.42,23.2]
[1720913478407,30.0,142.55,142.42,23.2]
[1720913478607,46.35862117,142.54,142.42,23.2]
[1720913479320,46.35862117,142.54,142.38,2.73753977]
[1720913479521,30.0,142.53,142.4,23.2]
[1720913479832,46.35862117,142.52,142.4,23.2]
[1720913480722,1.35862117,142.52,142.4,23.2]
[1720913480942,1.35862117,142.52,142.41,1.40399104]
[1720913481245,1.35862117,142.52,142.33,0.04163161]
[1720913481415,23.2,142.51,142.37,23.2]
[1720913481620,46.35862117,142.5,142.37,23.2]
[1720913482325,54.3,142.49,142.35,23.2]
[1720913482510,76.35862117,142.48,142.35,23.2]
[1720913483333,76.35862117,142.48,142.36,1.40437258]
[1720913483536,76.35862117,142.48,142.35,23.2]
[1720913485722,76.35862117,142.48,142.36,1.40441948]
[1720913486243,76.35862117,142.48,142.35,23.2]
[1720913486448,76.35862117,142.48,142.36,1.40443857]
[1720913486648,97.45862117,142.48,142.35,23.2]
[1720913486845,23.2,142.45,142.33,0.04163161]
[1720913487157,76.35862117,142.44,142.33,0.04163161]
[1720913487353,76.35862117,142.44,142.33,1.4462932]
[1720913488850,31.35862117,142.44,142.33,1.4462932]
[1720913489038,1.35862117,142.43,142.33,0.04163161]
[1720913490028,30.0,142.42,142.33,0.04163161]
[1720913490227,31.35862117,142.42,142.33,0.04163161]
[1720913490552,1.35862117,142.41,142.33,0.04163161]
[1720913491945,2.84939641,142.45,142.33,0.04163161]
[1720913492140,2.84939641,142.45,142.33,1.44635846]
[1720913492141,1.35862117,142.44,142.33,1.44635846]
[1720913492364,46.35862117,142.44,142.33,1.44635846]
[1720913493055,46.35862117,142.44,142.33,0.04163161]
[1720913493531,23.2,142.43,142.33,0.04163161]
[1720913493727,23.2,142.41,142.33,0.04163161]
[1720913493956,1.35862117,142.4,142.33,0.04163161]
[1720913494163,1.35862117,142.39,142.33,0.04163161]
[1720913496234,1.35862117,142.43,142.34,7.0249]
[1720913496438,1.35862117,142.42,142.34,7.0253]
[1720913496940,1.35862117,142.42,142.33,0.04163161]
[1720913497253,1.35862117,142.42,142.35,7.0244]
[1720913497471,1.35862117,142.41,142.35,7.0244]
[1720913497653,1.35862117,142.43,142.33,0.04163161]
[1720913497870,1.35862117,142.42,142.33,0.04163161]
[1720913498065,1.35862117,142.42,142.33,1.44642947]
[1720913498351,1.35862117,142.42,142.34,1.40469623]
[1720913498553,1.35862117,142.42,142.35,1.40469851]
[1720913498763,1.35862117,142.42,142.35,24.60469851]
[1720913498931,1.35862117,142.47,142.35,24.60469851]
[1720913499133,1.35862117,142.47,142.36,1.40392246]
[1720913499336,1.35862117,142.47,142.37,23.2]
[1720913500556,1.35862117,142.47,142.34,26.16]
[1720913500752,1.35862117,142.47,142.33,21.18133161]
[1720913500753,1.35862117,142.47,142.33,47.34133161]
[1720913501052,1.35862117,142.47,142.33,0.04163161]
[1720913501273,40.74330079,142.46,142.33,0.04163161]
[1720913501471,46.35862117,142.45,142.33,0.04163161]
[1720913501650,10.0,142.43,142.33,0.04163161]
[1720913501849,46.35862117,142.42,142.33,0.04163161]
[1720913502245,1.35862117,142.42,142.33,0.04163161]
[1720913502440,10.0,142.41,142.33,0.04163161]
[1720913502654,46.35862117,142.4,142.33,0.04163161]
[1720913502852,1.35862117,142.39,142.33,0.04163161]
[1720913503154,1.35862117,142.39,142.34,7.0252]
[1720913503351,1.35862117,142.38,142.33,0.04163161]
[1720913503669,1.35862117,142.43,142.34,7.025]
[1720913503842,1.35862117,142.42,142.34,7.025]
[1720913504042,1.35862117,142.42,142.35,7.0248]
[1720913504267,1.35862117,142.42,142.34,7.0253]
[1720913505064,1.35862117,142.42,142.33,0.04163161]
[1720913505260,1.35862117,142.41,142.33,0.04163161]
[1720913505463,1.35862117,142.45,142.33,0.04163161]
[1720913506456,46.35862117,142.45,142.33,0.04163161]
[1720913506644,56.00192196,142.45,142.33,0.04163161]
[1720913507349,1.35862117,142.44,142.33,0.04163161]
[1720913508660,46.35862117,142.44,142.33,0.04163161]
[1720913509051,1.35862117,142.44,142.33,0.04163161]
[1720913509566,46.35862117,142.44,142.33,0.04163161]
[1720913509751,1.35862117,142.44,142.33,26.20163161]
[1720913509945,9.64330079,142.49,142.34,45.0]
[1720913510266,1.35862117,142.48,142.35,1.40423903]
[1720913510656,1.35862117,142.48,142.34,65.0]
[1720913510965,1.35862117,142.48,142.35,1.40432546]
[1720913511470,1.35862117,142.48,142.36,21.1397]
[1720913511770,1.35862117,142.48,142.37,45.0]
[1720913512144,1.35862117,142.51,142.37,45.0]
[1720913513247,9.69876286,142.51,142.37,45.0]
[1720913513443,1.35862117,142.5,142.37,45.0]
[1720913513669,11.00192196,142.5,142.36,47.2997]
[1720913514371,45.0,142.49,142.36,47.2997]
[1720913514551,1.35862117,142.48,142.36,47.2997]
[1720913515876,1.35862117,142.48,142.33,42.04653161]
[1720913516955,1.35862117,142.48,142.34,20.0]
[1720913517155,1.35862117,142.48,142.35,1.40437457]
[1720913517461,1.35862117,142.48,142.35,46.40437457]
[1720913517667,1.35862117,142.48,142.34,65.0]
[1720913517863,1.35862117,142.48,142.34,45.0]
[1720913518255,1.35862117,142.48,142.33,42.04653161]
[1720913518763,22.45862117,142.48,142.34,1.40445762]
[1720913519088,45.0,142.47,142.34,1.4046472]
[1720913519373,1.35862117,142.46,142.33,26.20163161]
[1720913519555,1.35862117,142.45,142.33,26.20163161]
[1720913520460,1.35862117,142.45,142.33,0.04163161]
[1720913521380,21.1,142.44,142.33,0.04163161]
[1720913521578,46.35862117,142.43,142.33,0.04163161]
[1720913521758,1.35862117,142.42,142.33,0.04163161]
[1720913525776,1.35862117,142.42,142.34,7.0253]
[1720913526167,1.35862117,142.42,142.33,7.06743161]
[1720913526370,1.35862117,142.42,142.33,0.04163161]
[1720913526979,1.35862117,142.42,142.35,7.0247]
[1720913527185,1.35862117,142.42,142.36,7.0244]
[1720913527873,1.35862117,142.42,142.33,0.04163161]
[1720913528865,1.35862117,142.41,142.33,0.04163161]
[1720913529072,1.35862117,142.44,142.34,7.025]
[1720913529273,1.35862117,142.44,142.38,7.0234]
[1720913529677,1.35862117,142.44,142.33,23.31163161]
[1720913530668,46.35862117,142.44,142.33,23.31163161]
[1720913530868,1.35862117,142.44,142.33,23.31163161]
[1720913533478,1.35862117,142.44,142.34,1.404626]
[1720913533783,1.35862117,142.44,142.35,23.27]
[1720913533980,1.35862117,142.47,142.35,23.27]
[1720913534164,1.35862117,142.47,142.37,23.27]
[1720913534370,1.35862117,142.47,142.38,1.40425879]
[1720913534585,1.35862117,142.47,142.37,23.27]
[1720913534970,1.35862117,142.46,142.37,23.27]
[1720913535171,1.35862117,142.49,142.37,23.27]
[1720913535385,1.35862117,142.48,142.37,23.27]
[1720913536391,1.35862117,142.47,142.37,23.27]
[1720913537391,1.35862117,142.49,142.37,23.27]
[1720913537566,1.35862117,142.48,142.37,23.27]
[1720913537767,1.35862117,142.48,142.35,6.4897]
[1720913537967,1.35862117,142.48,142.34,23.27]
[1720913538691,32.45862117,142.48,142.34,23.27]
[1720913538896,68.27,142.47,142.34,23.27]
[1720913539089,1.35862117,142.46,142.34,23.27]
[1720913539290,1.35862117,142.45,142.33,0.04163161]
[1720913539690,46.35862117,142.45,142.33,0.04163161]
[1720913540879,1.35862117,142.45,142.33,0.04163161]
[1720913541069,1.35862117,142.45,142.34,23.27]
[1720913541276,1.35862117,142.45,142.35,1.40457569]
[1720913541792,1.35862117,142.45,142.34,23.27]
[1720913542678,1.35862117,142.45,142.36,23.27]
[1720913542887,1.35862117,142.48,142.36,23.27]
[1720913543086,46.35862117,142.48,142.36,23.27]
[1720913544293,10.0,142.46,142.33,0.04163161]
[1720913544517,69.62862117,142.45,142.33,0.04163161]
[1720913546000,31.1,142.44,142.33,0.04163161]
[1720913546316,69.62862117,142.43,142.33,0.04163161]
[1720913546525,1.35862117,142.42,142.33,0.04163161]
[1720913547010,1.35862117,142.42,142.33,7.06743161]
[1720913548123,1.35862117,142.42,142.34,7.0254]
[1720913548621,11.35862117,142.42,142.33,0.04163161]
[1720913548796,45.0,142.41,142.33,0.04163161]
[1720913548998,1.35862117,142.4,142.33,0.04163161]
[1720913549306,30.0,142.38,142.33,0.04163161]
[1720913549500,1.35862117,142.37,142.33,0.04163161]
[1720913550103,46.35862117,142.37,142.33,0.04163161]
[1720913550614,30.0,142.36,142.33,0.04163161]
[1720913550818,1.35862117,142.35,142.33,0.04163161]
[1720913551419,46.35862117,142.35,142.33,0.04163161]
[1720913552825,1.35862117,142.35,142.33,0.04163161]
[1720913554002,46.35862117,142.35,142.33,0.04163161]
[1720913554198,46.35862117,142.35,142.25,46.0366]
[1720913554517,46.35862117,142.35,142.27,7.0284]
[1720913554912,46.35862117,142.35,142.28,7.0282]
[1720913555115,46.35862117,142.35,142.29,7.0277]
[1720913555425,1.35862117,142.35,142.29,7.0277]
[1720913556508,46.35862117,142.35,142.28,7.0283]
[1720913557007,46.35862117,142.35,142.25,22.7666]
[1720913557219,46.35862117,142.35,142.23,23.27]
[1720913557535,46.35862117,142.35,142.28,7.0283]
[1720913558424,30.0,142.34,142.23,23.27]
[1720913558602,1.35862117,142.33,142.27,7.0287]
[1720913558808,1.35862117,142.32,142.28,7.0282]
[1720913559024,1.35862117,142.34,142.28,7.0282]
[1720913559531,1.35862117,142.34,142.23,23.27]
[1720913559905,1.35862117,142.34,142.28,7.0283]
[1720913560705,1.35862117,142.33,142.29,7.0277]
[1720913560925,1.35862117,142.36,142.29,7.0277]
[1720913561111,1.35862117,142.35,142.28,7.0282]
[1720913561312,1.35862117,142.35,142.27,7.0288]
[1720913561520,1.35862117,142.35,142.23,23.27]
[1720913561719,1.35862117,142.35,142.26,7.0288]
[1720913562216,1.35862117,142.35,142.27,7.0288]
[1720913562812,1.35862117,142.35,142.28,7.0283]
[1720913563143,1.35862117,142.35,142.23,23.27]
[1720913563317,1.35862117,142.34,142.25,23.27]
[1720913563510,1.35862117,142.37,142.25,23.27]
[1720913563712,1.35862117,142.37,142.3,7.0269]
[1720913563942,33.27,142.36,142.21,0.2]
[1720913564126,23.27,142.34,142.25,7.0297]
[1720913564315,1.35862117,142.33,142.25,7.0297]
[1720913565123,46.35862117,142.33,142.25,7.0297]
[1720913565740,46.35862117,142.33,142.24,7.0302]
[1720913565927,46.35862117,142.33,142.21,0.2]
[1720913565928,33.27,142.32,142.21,0.2]
[1720913566128,23.27,142.3,142.21,0.2]
[1720913566321,23.27,142.28,142.21,0.2]
[1720913566636,1.35862117,142.27,142.21,0.2]
[1720913566828,1.35862117,142.26,142.21,0.2]
[1720913567834,24.62862117,142.26,142.21,0.2]
[1720913568038,45.0,142.25,142.21,0.2]
[1720913568239,1.35862117,142.24,142.21,0.2]
[1720913568413,1.35862117,142.23,142.21,0.2]
[1720913569913,23.27,142.22,142.21,0.2]
[1720913570219,68.27,142.22,142.21,0.2]
[1720913570417,68.27,142.22,142.11,0.2]
[1720913570628,46.35862117,142.21,142.11,0.2]
[1720913570945,1.35862117,142.2,142.11,0.2]
[1720913571255,24.62862117,142.2,142.1,6.7372]
[1720913571549,45.0,142.19,142.01,22.42]
[1720913571744,31.35862117,142.18,142.09,7.0373]
[1720913571921,1.35862117,142.17,142.09,7.0373]
[1720913572242,46.35862117,142.17,142.07,7.0384]
[1720913572555,46.35862117,142.17,142.06,7.0391]
[1720913573120,46.35862117,142.17,142.04,1.407536]
[1720913573436,46.35862117,142.17,142.09,7.0377]
[1720913574216,1.35862117,142.17,142.05,23.27]
[1720913574719,1.35862117,142.17,142.1,7.0372]
[1720913574921,1.35862117,142.17,142.09,7.0376]
[1720913575127,1.35862117,142.19,142.05,23.27]
[1720913575321,46.35862117,142.19,142.08,7.0379]
[1720913575634,23.27,142.18,142.07,7.0386]
[1720913575832,46.35862117,142.17,142.07,7.0386]
[1720913576150,46.35862117,142.17,142.08,7.0382]
[1720913576340,1.35862117,142.17,142.08,22.1179]
[1720913576529,260.8,142.3,142.15,7.0346]
[1720913576530,1.35862117,142.21,142.15,7.0346]
[1720913576723,10.0,142.27,142.15,7.0346]
[1720913576724,1.35862117,142.2,142.15,7.0346]
[1720913576930,34.62862117,142.25,142.14,7.0352]
[1720913577155,20.88138307,142.25,142.13,7.0357]
[1720913577322,23.27,142.24,142.13,7.0357]
[1720913577526,1.35862117,142.23,142.14,7.0351]
[1720913577758,1.35862117,142.23,142.15,7.0347]
[1720913577927,1.35862117,142.23,142.13,23.27]
[1720913578127,1.35862117,142.23,142.15,7.0347]
[1720913578366,1.35862117,142.23,142.13,23.27]
[1720913578667,1.35862117,142.23,142.14,7.0349]
[1720913578829,1.35862117,142.23,142.15,7.0347]
[1720913579433,1.35862117,142.23,142.14,7.0353]
[1720913579858,1.35862117,142.23,142.11,23.27]
[1720913580466,1.35862117,142.23,142.12,1.40691167]
[1720913580672,1.35862117,142.23,142.11,23.27]
[1720913580843,1.35862117,142.23,142.18,7.0332]
[1720913581157,1.35862117,142.23,142.16,7.0342]
[1720913581532,1.35862117,142.23,142.15,7.0343]
[1720913582035,46.35862117,142.23,142.15,7.0343]
[1720913582237,1.35862117,142.23,142.12,23.27]
[1720913582573,1.35862117,142.23,142.17,7.0336]
[1720913583369,10.0,142.22,142.05,6.5098]
[1720913583672,24.62862117,142.21,142.11,7.0366]
[1720913583901,1.35862117,142.2,142.11,7.0366]
[1720913584079,46.35862117,142.2,142.05,6.5098]
[1720913584281,56.35862117,142.2,142.07,23.27]
[1720913584487,23.27,142.19,142.05,6.5098]
[1720913584685,46.35862117,142.18,142.08,7.0382]
[1720913584981,31.35862117,142.17,142.08,7.0382]
[1720913585195,45.0,142.16,142.08,7.0382]
[1720913585406,1.35862117,142.15,142.06,7.0392]
[1720913585573,1.35862117,142.14,142.08,7.0381]
[1720913585899,1.35862117,142.14,142.02,45.2228]
[1720913586097,1.35862117,142.14,142.07,7.0387]
[1720913586903,1.35862117,142.14,142.02,45.2228]
[1720913587199,1.35862117,142.14,142.05,7.0396]
[1720913587395,1.35862117,142.14,142.01,7.2414]
[1720913587396,10.0,142.13,142.01,7.2414]
[1720913587621,69.62862117,142.12,142.02,7.041]
[1720913588108,69.62862117,142.12,142.01,0.2]
[1720913588404,69.62862117,142.12,142.01,7.2413]
[1720913588599,30.0,142.11,142.01,7.2413]
[1720913588794,46.35862117,142.1,142.01,7.2413]
[1720913589102,46.35862117,142.1,142.02,7.0412]
[1720913589305,77.45862117,142.1,142.01,0.2]
[1720913589504,23.27,142.08,142.01,0.2]
[1720913589671,30.0,142.09,142.01,0.2]
[1720913589672,46.35862117,142.07,142.01,0.2]
[1720913590172,1.35862117,142.07,142.01,0.2]
[1720913591425,1.35862117,142.07,142.01,7.2417]
[1720913591734,1.35862117,142.07,142.01,0.2]
[1720913593535,30.0,142.05,142.01,0.2]
[1720913593694,46.35862117,142.04,142.01,0.2]
[1720913595019,30.0,142.03,142.01,0.2]
[1720913595201,46.35862117,142.02,142.01,0.2]
[1720913595410,30.0,142.03,142.01,0.2]
[1720913595700,1.35862117,142.07,142.01,0.2]
[1720913595904,1.35862117,142.11,142.01,0.2]
[1720913596098,1.35862117,142.16,142.09,7.0374]
[1720913596321,1.35862117,142.16,142.1,7.0369]
[1720913596529,1.35862117,142.16,142.11,7.0367]
[1720913596838,8.99337301,142.21,142.12,1.40728752]
[1720913597000,8.99337301,142.21,142.12,7.0362]
[1720913597195,8.99337301,142.21,142.13,7.0353]
[1720913597733,1.35862117,142.2,142.12,7.0362]
[1720913597915,1.35862117,142.2,142.11,7.0366]
[1720913598302,8.8563572,142.19,142.02,32.7013]
[1720913598498,1.35862117,142.18,142.08,7.0378]
[1720913598834,8.8563572,142.19,142.08,7.0382]
[1720913598835,1.35862117,142.17,142.08,7.0382]
[1720913599331,10.0,142.18,142.07,7.0387]
[1720913599639,10.0,142.15,142.02,6.4313]
[1720913599805,45.85862117,142.14,142.02,6.4313]
[1720913600133,0.85862117,142.14,142.02,6.4313]
[1720913600709,45.85862117,142.14,142.04,7.04]
[1720913600907,0.85862117,142.13,142.02,6.4313]
[1720913601102,10.85862117,142.16,142.05,7.0393]
[1720913601327,45.0,142.15,142.05,7.0396]
[1720913601520,0.85862117,142.14,142.05,7.0396]
[1720913601837,0.85862117,142.14,142.06,7.0392]
[1720913602210,0.85862117,142.14,142.04,7.0401]
[1720913602406,0.85862117,142.14,142.05,7.0392]
[1720913602625,0.85862117,142.14,142.06,7.0389]